bitfinex-derivatives/quotes_BTCF0:USTF0_20250325
["timestamp","ask_amount","ask_price","bid_price","bid_amount"]
[1742927004948,0.13677948,87804.0,87803.0,0.4746776]
[1742927005148,0.13677948,87804.0,87803.0,0.5488776]
[1742927005365,0.25065578,87804.0,87803.0,0.5488776]
[1742927006262,0.11651631,87804.0,87803.0,0.5488776]
[1742927007063,0.11551631,87804.0,87803.0,0.5488776]
[1742927008062,0.11551631,87804.0,87803.0,0.8288776]
[1742927011262,0.00017078,87809.0,87807.0,0.1708073]
[1742927011466,0.00137079,87809.0,87808.0,0.074]
[1742927011662,0.17217609,87809.0,87808.0,0.4584711]
[1742927012065,0.17217609,87809.0,87808.0,0.35583258]
[1742927012371,0.17317609,87809.0,87808.0,0.35583258]
[1742927012868,0.17317609,87809.0,87808.0,0.46970368]
[1742927012869,0.26247609,87809.0,87808.0,0.46970368]
[1742927013069,0.26347609,87809.0,87808.0,0.46970368]
[1742927013271,0.26447609,87809.0,87808.0,0.35583258]
[1742927013856,0.26347609,87809.0,87808.0,0.35583258]
[1742927014062,0.26547609,87809.0,87808.0,0.35583258]
[1742927015161,0.26547609,87809.0,87808.0,0.46970368]
[1742927015765,0.26547609,87809.0,87808.0,0.3146]
[1742927020065,0.62627609,87809.0,87808.0,0.3146]
[1742927021074,0.41207079,87809.0,87808.0,0.4284711]
[1742927021260,0.00437079,87809.0,87808.0,0.4450711]
[1742927021467,0.00317078,87809.0,87808.0,0.1750711]
[1742927021669,0.11704058,87809.0,87808.0,0.1750711]
[1742927021871,0.11824059,87809.0,87808.0,0.1750711]
[1742927022062,0.00437079,87809.0,87808.0,0.2250711]
[1742927022378,0.00110343,87812.0,87811.0,0.1138672]
[1742927022669,0.13856552,87814.0,87813.0,0.1138646]
[1742927022858,0.13856552,87814.0,87813.0,0.3645046]
[1742927023062,0.13856552,87814.0,87813.0,0.4241046]
[1742927024174,0.13856552,87814.0,87813.0,0.1741046]
[1742927024175,0.12028935,87814.0,87813.0,0.1741046]
[1742927024476,0.12452936,87814.0,87813.0,0.1575046]
[1742927024774,0.20452936,87814.0,87813.0,0.04364]
[1742927027375,0.20452936,87814.0,87813.0,0.00064]
[1742927029269,0.20452936,87814.0,87813.0,0.1145046]
[1742927029977,0.20452936,87814.0,87813.0,0.1554046]
[1742927030181,0.20452936,87814.0,87813.0,0.04154]
[1742927030565,0.20452936,87814.0,87813.0,0.1554046]
[1742927031172,0.20452936,87814.0,87813.0,0.04154]
[1742927031368,0.20452936,87814.0,87813.0,0.00064]
[1742927032884,0.20452936,87814.0,87813.0,0.04234]
[1742927035579,0.20452936,87814.0,87813.0,0.1562046]
[1742927036971,0.20452936,87814.0,87813.0,0.00064]
[1742927037288,0.20452936,87814.0,87813.0,0.1145046]
[1742927038671,0.20452936,87814.0,87813.0,0.00064]
[1742927038876,0.20452936,87814.0,87813.0,0.1145046]
[1742927039072,0.20452936,87814.0,87813.0,0.00064]
[1742927039387,0.20452936,87814.0,87813.0,0.1145046]
[1742927039773,0.20452936,87814.0,87813.0,0.00064]
[1742927041682,0.20452936,87814.0,87813.0,0.1145046]
[1742927041878,0.20452936,87814.0,87813.0,0.00064]
[1742927043089,0.24732936,87814.0,87813.0,0.00064]
[1742927043878,0.24732936,87814.0,87813.0,0.04154]
[1742927044188,0.24732936,87814.0,87813.0,0.1554046]
[1742927044382,0.24732936,87814.0,87813.0,0.04154]
[1742927047787,0.24732936,87814.0,87813.0,0.00064]
[1742927048081,0.24732936,87814.0,87813.0,0.00230805]
[1742927050278,0.24732936,87814.0,87813.0,0.04280805]
[1742927050580,0.24732936,87814.0,87813.0,0.15667265]
[1742927051187,0.04986606,87814.0,87813.0,0.15667265]
[1742927051376,0.04986606,87814.0,87813.0,0.17307265]
[1742927051578,0.0076147,87821.0,87815.0,0.0569306]
[1742927051780,0.17756279,87825.0,87822.0,0.113853]
[1742927051978,0.00877957,87823.0,87822.0,0.114453]
[1742927052178,0.00877957,87823.0,87822.0,0.212153]
[1742927052488,0.00877957,87823.0,87822.0,1.712153]
[1742927052681,0.00797957,87823.0,87822.0,1.712153]
[1742927053684,0.01697957,87823.0,87822.0,1.712153]
[1742927054085,0.13083127,87823.0,87822.0,1.5575]
[1742927054287,0.17213127,87823.0,87822.0,1.5411]
[1742927054981,0.17213127,87823.0,87822.0,1.654953]
[1742927056891,0.21283127,87823.0,87822.0,1.654953]
[1742927057690,0.21283127,87823.0,87822.0,1.5411]
[1742927058589,0.21283127,87823.0,87822.0,1.654953]
[1742927059888,0.21283127,87823.0,87822.0,1.697053]
[1742927060101,0.09897957,87823.0,87822.0,1.697053]
[1742927060387,0.05767957,87823.0,87822.0,1.697053]
[1742927060779,0.05767957,87823.0,87822.0,1.738053]
[1742927061181,0.0993994,87823.0,87822.0,1.738053]
[1742927061987,0.2132511,87823.0,87822.0,1.697053]
[1742927062588,0.2132511,87823.0,87822.0,1.654953]
[1742927062589,0.22075503,87823.0,87822.0,1.654953]
[1742927062784,0.22075503,87823.0,87822.0,0.0411]
[1742927062991,0.22159503,87823.0,87822.0,0.154953]
[1742927065289,0.22159503,87823.0,87822.0,0.0411]
[1742927065704,0.22159503,87823.0,87822.0,0.0006]
[1742927066701,0.22159503,87823.0,87813.0,0.00166805]
[1742927066702,0.1138633,87814.0,87813.0,0.00166805]
[1742927066899,0.1146633,87814.0,87813.0,0.00230805]
[1742927067090,0.2338633,87814.0,87813.0,0.00230805]
[1742927067288,0.24136723,87814.0,87813.0,0.00230805]
[1742927068807,0.24636723,87814.0,87813.0,0.00230805]
[1742927071495,0.24636723,87814.0,87813.0,0.00166805]
[1742927072198,0.24636723,87814.0,87813.0,0.11553265]
[1742927072399,0.24636723,87814.0,87813.0,0.19807265]
[1742927072802,0.24636723,87814.0,87813.0,0.08420805]
[1742927074100,0.24636723,87814.0,87813.0,0.08356805]
[1742927074414,0.24636723,87814.0,87813.0,0.08416805]
[1742927074797,0.24636723,87814.0,87813.0,0.08356805]
[1742927075206,0.24636723,87814.0,87813.0,0.08416805]
[1742927075407,0.24636723,87814.0,87813.0,0.19803265]
[1742927075907,0.24636723,87814.0,87813.0,0.08416805]
[1742927076592,0.24636723,87814.0,87813.0,0.19803265]
[1742927076797,0.24636723,87814.0,87813.0,0.08416805]
[1742927077100,0.25542175,87814.0,87813.0,0.08416805]
[1742927077397,0.25542175,87814.0,87813.0,0.19803265]
[1742927077709,0.26811584,87814.0,87813.0,0.08416805]
[1742927078209,0.26811584,87814.0,87813.0,0.19803265]
[1742927079798,0.26811584,87814.0,87813.0,0.15623265]
[1742927082909,0.26811584,87814.0,87813.0,0.19463265]
[1742927084815,0.26811584,87814.0,87813.0,0.15623265]
[1742927087208,0.26811584,87814.0,87813.0,0.04236805]
[1742927087512,0.26811584,87814.0,87813.0,0.04176805]
[1742927088214,0.28305974,87814.0,87813.0,0.04176805]
[1742927088410,0.28305974,87814.0,87813.0,0.04240805]
[1742927088813,0.28305974,87814.0,87813.0,0.04176805]
[1742927089211,0.28305974,87814.0,87813.0,0.04240805]
[1742927089411,0.28305974,87814.0,87813.0,0.04176805]
[1742927089911,0.28305974,87814.0,87813.0,0.00166805]
[1742927092024,0.26811584,87814.0,87813.0,0.00166805]
[1742927094122,0.28304369,87814.0,87813.0,0.00166805]
[1742927095009,0.26811584,87814.0,87813.0,0.00166805]
[1742927095922,0.26832443,87814.0,87813.0,0.00166805]
[1742927096221,0.1138672,87811.0,87810.0,0.00127549]
[1742927096426,0.1389851,87811.0,87810.0,0.00195549]
[1742927096628,0.23848312,87811.0,87810.0,0.00195549]
[1742927097630,0.24048312,87811.0,87810.0,0.00195549]
[1742927098016,0.24248312,87811.0,87810.0,0.00195549]
[1742927098622,0.24248312,87811.0,87809.0,0.00300902]
[1742927098623,0.1138685,87810.0,87809.0,0.00300902]
[1742927098822,0.1138711,87808.0,87807.0,0.00247671]
[1742927099022,0.138949,87808.0,87807.0,0.00307671]
[1742927099218,0.12397421,87808.0,87807.0,0.00247671]
[1742927099523,0.22377223,87808.0,87807.0,0.00247671]
[1742927101022,0.22477223,87808.0,87807.0,0.00247671]
[1742927101228,0.33677223,87808.0,87807.0,0.11634911]
[1742927101428,0.33677223,87808.0,87807.0,0.04325671]
[1742927101625,0.33677223,87808.0,87807.0,0.00315671]
[1742927101932,0.33660279,87808.0,87807.0,0.00315671]
[1742927102326,0.33760279,87808.0,87807.0,0.00315671]
[1742927102630,0.39296241,87808.0,87807.0,0.00315671]
[1742927102822,0.39296241,87808.0,87807.0,0.00247671]
[1742927103330,0.39307608,87808.0,87807.0,0.00247671]
[1742927106633,0.56268074,87808.0,87807.0,0.00247671]
[1742927107129,0.56261626,87808.0,87807.0,0.00247671]
[1742927109129,0.56257082,87808.0,87807.0,0.00247671]
[1742927111222,0.56257082,87808.0,87806.0,0.00427985]
[1742927111223,0.1138724,87807.0,87806.0,0.00427985]
[1742927111427,0.00989742,87807.0,87800.0,0.08152654]
[1742927111627,0.1138828,87799.0,87797.0,3e-08]
[1742927111842,0.35448152,87798.0,87797.0,3e-08]
[1742927112139,0.37547954,87798.0,87797.0,3e-08]
[1742927112741,0.37447954,87798.0,87797.0,3e-08]
[1742927112941,0.37447954,87798.0,87793.0,0.01833496]
[1742927112942,0.0569427,87797.0,87784.0,0.03299619]
[1742927113142,0.1138971,87788.0,87784.0,0.03299619]
[1742927113438,0.25623345,87788.0,87784.0,0.03299619]
[1742927113636,0.37573345,87788.0,87784.0,0.03299619]
[1742927114246,0.37573345,87788.0,87773.0,0.33961601]
[1742927114247,0.1139152,87774.0,87773.0,0.33961601]
[1742927114453,0.61006071,87774.0,87773.0,0.34021601]
[1742927114743,0.61006071,87774.0,87773.0,0.0006]
[1742927114744,0.61086071,87774.0,87773.0,0.0006]
[1742927114940,0.1139165,87773.0,87772.0,0.23004697]
[1742927115238,0.30941483,87773.0,87772.0,0.23064697]
[1742927115844,0.32861285,87773.0,87772.0,0.23064697]
[1742927116538,0.32761285,87773.0,87772.0,0.23064697]
[1742927117343,0.36791285,87773.0,87772.0,0.23064697]
[1742927118645,0.35865452,87773.0,87772.0,0.23064697]
[1742927119237,0.36774076,87773.0,87772.0,0.23064697]
[1742927119739,0.36774076,87773.0,87772.0,0.02622757]
[1742927119740,0.35865452,87773.0,87772.0,0.02622757]
[1742927119938,0.35865452,87773.0,87772.0,0.02562757]
[1742927120144,0.36774681,87773.0,87772.0,0.02562757]
[1742927120335,0.35865452,87773.0,87772.0,0.02562757]
[1742927121049,0.36778335,87773.0,87772.0,0.02562757]
[1742927121447,0.3677834,87773.0,87772.0,0.02562757]
[1742927121751,0.1139191,87771.0,87770.0,0.01332216]
[1742927122046,0.12384798,87771.0,87770.0,0.01332216]
[1742927122439,0.144046,87771.0,87770.0,0.01332216]
[1742927124450,0.0569633,87766.0,87759.0,0.00045579]
[1742927124752,0.1139334,87760.0,87759.0,0.00113579]
[1742927124949,0.24340621,87760.0,87759.0,0.00113579]
[1742927125749,0.32070621,87760.0,87759.0,0.00113579]
[1742927126445,0.33343154,87760.0,87759.0,0.00113579]
[1742927127241,0.29573154,87760.0,87759.0,0.00113579]
[1742927127447,0.18369154,87760.0,87759.0,0.00113579]
[1742927128741,0.20996621,87760.0,87759.0,0.00113579]
[1742927129049,0.24886621,87760.0,87759.0,0.00113579]
[1742927131350,0.24866389,87760.0,87759.0,0.00113579]
[1742927132054,0.36070389,87760.0,87759.0,0.00113579]
[1742927133953,0.36070389,87760.0,87759.0,0.03973579]
[1742927134759,0.37333663,87760.0,87759.0,0.03973579]
[1742927135057,0.33443663,87760.0,87759.0,0.03973579]
[1742927135354,0.33443663,87760.0,87759.0,0.08033579]
[1742927136664,0.22239663,87760.0,87759.0,0.08033579]
[1742927137161,0.18339663,87760.0,87759.0,0.03973579]
[1742927137453,0.18339663,87760.0,87759.0,0.07743579]
[1742927138160,0.22199663,87760.0,87759.0,0.03973579]
[1742927139563,0.2224436,87760.0,87759.0,0.03973579]
[1742927140148,0.2224436,87760.0,87759.0,0.00113579]
[1742927142764,0.22261198,87760.0,87759.0,0.00113579]
[1742927143660,0.20994512,87760.0,87759.0,0.00113579]
[1742927144864,0.22264248,87760.0,87759.0,0.00113579]
[1742927145064,0.22259523,87760.0,87759.0,0.00113579]
[1742927145657,0.20989787,87760.0,87759.0,0.00113579]
[1742927145963,0.20987934,87760.0,87759.0,0.00113579]
[1742927147162,0.22261571,87760.0,87759.0,0.00113579]
[1742927149760,0.22278092,87760.0,87759.0,0.00045579]
[1742927149961,0.113936,87758.0,87757.0,8e-05]
[1742927150172,0.12401037,87758.0,87757.0,8e-05]
[1742927150357,0.20281037,87758.0,87757.0,8e-05]
[1742927150561,0.22346352,87758.0,87757.0,8e-05]
[1742927151157,0.22346352,87758.0,87746.0,0.3608]
[1742927151158,0.1139503,87747.0,87746.0,0.3608]
[1742927151357,0.12402467,87747.0,87746.0,0.37296027]
[1742927151566,0.24132467,87747.0,87746.0,0.3614]
[1742927151754,0.26197782,87747.0,87746.0,0.3614]
[1742927152156,0.26197782,87747.0,87746.0,0.0006]
[1742927152366,0.26297782,87747.0,87746.0,0.0006]
[1742927153265,0.27467625,87747.0,87746.0,0.0006]
[1742927154261,0.27567625,87747.0,87746.0,0.0006]
[1742927154469,0.27467625,87747.0,87746.0,0.0006]
[1742927155567,0.27367625,87747.0,87746.0,0.0006]
[1742927157061,0.27360945,87747.0,87746.0,0.0006]
[1742927157455,0.1139529,87745.0,87744.0,0.03848]
[1742927157674,0.12392779,87745.0,87744.0,0.03908]
[1742927157867,0.19982779,87745.0,87744.0,0.03848]
[1742927158056,0.19982779,87745.0,87744.0,8e-05]
[1742927158363,0.1139581,87741.0,87740.0,0.13]
[1742927158562,0.1139724,87730.0,87729.0,0.0384]
[1742927158765,0.13898067,87730.0,87729.0,0.03908]
[1742927158959,0.25218067,87730.0,87729.0,0.039]
[1742927159356,0.27283382,87730.0,87729.0,0.0384]
[1742927159671,0.27283382,87730.0,87729.0,0.00068]
[1742927159865,0.27283382,87730.0,87729.0,0.0379]
[1742927160464,0.1139893,87717.0,87716.0,0.20978841]
[1742927160664,0.1139893,87717.0,87710.0,0.40735394]
[1742927160665,0.1139958,87712.0,87710.0,0.40735394]
[1742927160870,0.13904407,87712.0,87711.0,0.00105604]
[1742927161059,0.15969722,87712.0,87711.0,0.00105604]
[1742927161262,0.15625952,87712.0,87711.0,0.00105604]
[1742927161568,0.22222707,87712.0,87711.0,0.00045604]
[1742927162670,0.2094907,87712.0,87711.0,0.00045604]
[1742927163359,0.3215707,87712.0,87711.0,0.00045604]
[1742927163768,0.2094907,87712.0,87711.0,0.00045604]
[1742927163971,0.3215707,87712.0,87711.0,0.00045604]
[1742927165189,0.2094907,87712.0,87711.0,0.11445314]
[1742927165472,0.2094907,87712.0,87711.0,0.00105604]
[1742927165668,0.2094907,87712.0,87711.0,0.03645604]
[1742927165867,0.2094907,87712.0,87711.0,0.07485604]
[1742927166476,0.2482907,87712.0,87711.0,0.03645604]
[1742927166666,0.2482907,87712.0,87711.0,0.07495604]
[1742927167178,0.2482907,87712.0,87711.0,0.03645604]
[1742927167561,0.2482907,87712.0,87711.0,0.07495604]
[1742927170380,0.2482907,87712.0,87711.0,0.00105604]
[1742927170874,0.2482907,87712.0,87711.0,0.07475604]
[1742927171269,0.2482907,87712.0,87711.0,0.03915604]
[1742927171572,0.2482907,87712.0,87711.0,0.03855604]
[1742927172578,0.2482907,87712.0,87711.0,0.03915604]
[1742927172876,0.6090907,87712.0,87711.0,0.03915604]
[1742927173079,0.6090907,87712.0,87711.0,0.03855604]
[1742927173674,0.60901016,87712.0,87711.0,0.03855604]
[1742927175571,0.57021016,87712.0,87711.0,0.15315314]
[1742927175770,0.57012614,87712.0,87711.0,0.15315314]
[1742927175973,0.57012614,87712.0,87711.0,0.03915604]
[1742927176166,0.57012614,87712.0,87711.0,0.00045604]
[1742927176682,0.56125258,87712.0,87711.0,0.00045604]
[1742927179967,0.67337258,87712.0,87711.0,0.00045604]
[1742927180364,0.67337258,87712.0,87711.0,0.11045604]
[1742927180571,0.67337258,87712.0,87711.0,0.11105604]
[1742927182067,0.56125258,87712.0,87711.0,0.11105604]
[1742927182985,0.56125258,87712.0,87711.0,0.00105604]
[1742927183169,0.56125258,87712.0,87711.0,0.00045604]
[1742927184670,0.57018822,87712.0,87711.0,0.00045604]
[1742927186278,0.58285371,87712.0,87711.0,0.00045604]
[1742927186476,0.58293726,87712.0,87711.0,0.00045604]
[1742927187378,0.58293726,87712.0,87711.0,0.29185628]
[1742927187586,0.58293726,87712.0,87711.0,0.29249628]
[1742927187973,0.58293726,87712.0,87711.0,0.26249628]
[1742927188176,0.22213726,87712.0,87711.0,0.37585338]
[1742927188489,0.22213726,87712.0,87711.0,0.37649338]
[1742927188681,0.22213726,87712.0,87711.0,0.44959338]
[1742927189273,0.20947177,87712.0,87711.0,0.44959338]
[1742927190581,0.20941517,87712.0,87711.0,0.44959338]
[1742927192084,0.2094006,87712.0,87711.0,0.44959338]
[1742927192881,0.0177048,87712.0,87711.0,0.44959338]
[1742927193068,0.0375,87715.0,87714.0,0.1139932]
[1742927193273,0.20402927,87724.0,87714.0,0.59144]
[1742927193574,0.0725,87730.0,87729.0,0.1139737]
[1742927193776,0.07334,87730.0,87729.0,0.4640537]
[1742927193978,0.07338,87730.0,87729.0,1.9640537]
[1742927194177,0.1709544,87734.0,87733.0,0.0569842]
[1742927194380,0.1709544,87734.0,87733.0,0.3080642]
[1742927194975,0.1709544,87734.0,87733.0,0.3195589]
[1742927195276,0.18373729,87734.0,87733.0,0.3195589]
[1742927195477,0.1848173,87734.0,87733.0,0.3195589]
[1742927196068,0.18373729,87734.0,87733.0,0.3195589]
[1742927196281,0.01778289,87734.0,87733.0,0.3195589]
[1742927196484,0.13175009,87734.0,87733.0,0.3195589]
[1742927196879,0.13575009,87734.0,87733.0,0.3195589]
[1742927197382,0.21055009,87734.0,87733.0,0.3195589]
[1742927197689,0.2116301,87734.0,87733.0,0.3195589]
[1742927198793,0.1368301,87734.0,87733.0,0.3195589]
[1742927199887,0.2115301,87734.0,87733.0,0.2625747]
[1742927200387,0.2115301,87734.0,87733.0,0.3765432]
[1742927203187,0.21148946,87734.0,87733.0,0.3765432]
[1742927203678,0.21148946,87734.0,87733.0,0.25108]
[1742927204891,0.22634478,87734.0,87733.0,0.25108]
[1742927205083,0.23562942,87734.0,87733.0,0.25108]
[1742927205289,0.24375454,87734.0,87733.0,0.3650485]
[1742927205486,0.24375454,87734.0,87733.0,0.1150485]
[1742927206889,0.22889918,87734.0,87733.0,0.1139685]
[1742927207786,0.04023198,87734.0,87733.0,0.1139685]
[1742927207993,0.04023198,87734.0,87733.0,0.1150885]
[1742927208295,0.04023198,87734.0,87733.0,0.1532885]
[1742927208488,0.15419918,87734.0,87733.0,1.6150885]
[1742927208678,0.19029918,87734.0,87733.0,1.6150885]
[1742927208880,0.243571,87734.0,87733.0,1.6150885]
[1742927209081,0.24358127,87734.0,87733.0,1.6150885]
[1742927209784,0.22870946,87734.0,87733.0,1.6150885]
[1742927210282,0.22870946,87734.0,87733.0,1.6541885]
[1742927212689,0.22870946,87734.0,87733.0,1.6894885]
[1742927213089,0.11474226,87734.0,87733.0,1.6894885]
[1742927213302,0.1523581,87741.0,87740.0,0.1139594]
[1742927213594,0.07708001,87741.0,87740.0,0.1150394]
[1742927213799,0.19103811,87741.0,87740.0,0.07408]
[1742927213999,0.22763811,87741.0,87740.0,0.07408]
[1742927214299,0.22763811,87741.0,87740.0,1.50108]
[1742927214490,0.23763811,87741.0,87740.0,1.50108]
[1742927214799,0.23763811,87741.0,87740.0,0.00108]
[1742927217603,0.1139594,87740.0,87739.0,0.00862099]
[1742927217791,0.113962,87738.0,87737.0,0.1905632]
[1742927218093,0.115122,87738.0,87737.0,0.07776]
[1742927218295,0.186922,87738.0,87737.0,0.00116]
[1742927218699,0.547722,87738.0,87737.0,0.00116]
[1742927218903,0.1139685,87733.0,87732.0,0.01157876]
[1742927219099,0.113975,87728.0,87727.0,0.00045596]
[1742927219301,0.114655,87728.0,87727.0,0.00045596]
[1742927219494,0.114655,87728.0,87727.0,0.00153596]
[1742927219495,0.186455,87728.0,87727.0,0.00153596]
[1742927219695,0.186455,87728.0,87727.0,0.00045596]
[1742927219892,0.20145169,87728.0,87727.0,0.00045596]
[1742927220403,0.20345169,87728.0,87727.0,5.196e-05]
[1742927221102,0.20367246,87728.0,87727.0,5.196e-05]
[1742927221288,0.08969746,87728.0,87727.0,0.11514826]
[1742927221491,0.09269746,87728.0,87727.0,0.11514826]
[1742927221688,0.20667246,87728.0,87727.0,0.11514826]
[1742927221892,0.20667246,87728.0,87727.0,0.18964826]
[1742927222106,0.20667246,87728.0,87727.0,1.68964826]
[1742927222295,0.20599246,87728.0,87727.0,1.68964826]
[1742927222501,0.09201746,87728.0,87727.0,2.05044826]
[1742927222696,1e-08,87729.0,87728.0,0.113975]
[1742927222904,0.1139672,87734.0,87733.0,0.1139672]
[1742927223094,0.1151272,87734.0,87733.0,0.1150472]
[1742927223294,0.1151272,87734.0,87733.0,1.6150472]
[1742927223703,0.16732015,87734.0,87733.0,1.6879472]
[1742927223902,0.20326015,87734.0,87733.0,1.6879472]
[1742927224610,0.20726015,87734.0,87733.0,1.6879472]
[1742927224911,0.21126015,87734.0,87733.0,1.6879472]
[1742927225103,0.21242015,87734.0,87733.0,1.6879472]
[1742927225303,0.22198593,87734.0,87733.0,1.6879472]
[1742927225910,0.23040441,87734.0,87733.0,1.6879472]
[1742927227007,0.03937721,87734.0,87733.0,1.6879472]
[1742927227305,0.20294353,87740.0,87739.0,0.1139607]
[1742927227498,0.113952,87746.0,87745.0,0.1139516]
[1742927227701,0.113952,87746.0,87745.0,0.1150316]
[1742927227897,0.188052,87746.0,87745.0,0.1888316]
[1742927228302,0.188052,87746.0,87745.0,0.20002019]
[1742927228506,0.0741,87746.0,87745.0,0.20002019]
[1742927228712,0.0741,87746.0,87745.0,0.19894019]
[1742927229512,0.1880516,87746.0,87745.0,0.19894019]
[1742927230411,0.1980516,87746.0,87745.0,0.19994019]
[1742927230802,0.0841,87746.0,87745.0,0.19994019]
[1742927231307,0.11252,87765.0,87751.0,0.1139451]
[1742927231504,0.0367,87753.0,87751.0,0.1139451]
[1742927231704,0.31778653,87752.0,87751.0,0.1863451]
[1742927231918,0.31778653,87752.0,87751.0,1.6863451]
[1742927232212,0.1864438,87752.0,87751.0,1.6863451]
[1742927232730,0.1864438,87752.0,87751.0,0.1863451]
[1742927233008,0.1864438,87752.0,87751.0,0.19509173]
[1742927233212,0.0725,87752.0,87751.0,0.19509173]
[1742927233411,0.0745,87752.0,87751.0,0.19617173]
[1742927235219,0.00348001,87752.0,87751.0,0.19617173]
[1742927235516,0.0024,87752.0,87751.0,0.19617173]
[1742927235700,0.00017098,87754.0,87753.0,0.1139425]
[1742927235908,0.10162556,87758.0,87757.0,0.1139373]
[1742927236102,0.10222557,87758.0,87757.0,0.1150173]
[1742927236307,0.10330558,87758.0,87757.0,1.6150173]
[1742927236500,0.0743,87764.0,87763.0,0.1139295]
[1742927236705,0.16952092,87767.0,87766.0,0.1139256]
[1742927237017,0.32142523,87767.0,87766.0,0.12643686]
[1742927237213,0.24490093,87767.0,87766.0,0.12643686]
[1742927237416,0.35882523,87767.0,87766.0,0.12643686]
[1742927238019,0.37175723,87767.0,87766.0,0.12643686]
[1742927238215,0.38706441,87767.0,87766.0,0.12643686]
[1742927238420,0.38706441,87767.0,87766.0,0.12743686]
[1742927238606,0.27314011,87767.0,87766.0,0.20273686]
[1742927238805,0.19884011,87767.0,87766.0,0.20273686]
[1742927239212,0.20840784,87767.0,87766.0,0.20273686]
[1742927239721,0.21683356,87767.0,87766.0,0.20273686]
[1742927240520,0.00842572,87767.0,87766.0,0.26273686]
[1742927240711,0.1139,87782.0,87774.0,0.1139152]
[1742927241015,0.1139,87782.0,87781.0,0.1139061]
[1742927241316,0.1139,87782.0,87781.0,1.6158261]
[1742927241616,0.2278048,87782.0,87781.0,1.6158261]
[1742927242006,0.2278048,87782.0,87781.0,1.6894261]
[1742927242414,0.2278048,87782.0,87781.0,0.1894261]
[1742927243621,0.2278048,87782.0,87781.0,0.00192]
[1742927243811,0.1139126,87777.0,87775.0,0.1139134]
[1742927244012,0.1139126,87777.0,87776.0,0.1139126]
[1742927244211,0.1139126,87777.0,87776.0,0.1893526]
[1742927246017,0.1139126,87777.0,87776.0,0.00184]
[1742927248221,0.1139126,87777.0,87776.0,0.1157526]
[1742927249423,0.1139126,87777.0,87776.0,0.00184]
[1742927249720,0.1139126,87777.0,87776.0,0.1157526]
[1742927250623,0.12948451,87777.0,87776.0,0.1157526]
[1742927251122,0.12948451,87777.0,87776.0,0.00184]
[1742927251313,0.14298236,87777.0,87776.0,0.00184]
[1742927251714,0.14298236,87777.0,87776.0,0.1157526]
[1742927252624,0.15270137,87777.0,87776.0,0.1157526]
[1742927253120,0.16112902,87777.0,87776.0,0.00184]
[1742927253712,0.16094505,87777.0,87776.0,0.00184]
[1742927254118,0.16094505,87777.0,87776.0,0.01343021]
[1742927254312,0.16045992,87777.0,87776.0,0.01343021]
[1742927255820,0.16045992,87777.0,87776.0,0.00184]
[1742927256019,0.52125992,87777.0,87776.0,0.00184]
[1742927256221,0.1139126,87776.0,87775.0,8e-05]
[1742927256525,0.13853442,87776.0,87775.0,0.01130263]
[1742927256823,0.13853442,87776.0,87775.0,0.01314263]
[1742927256824,0.16045992,87776.0,87775.0,0.01314263]
[1742927257725,0.16045992,87776.0,87775.0,0.00192]
[1742927258217,0.16045992,87776.0,87775.0,8e-05]
[1742927258417,0.1139243,87767.0,87765.0,0.01163853]
[1742927258618,0.13851955,87767.0,87766.0,0.00201098]
[1742927258817,0.17931955,87767.0,87766.0,0.00201098]
[1742927259023,0.20124505,87767.0,87766.0,0.00201098]
[1742927259826,0.20124505,87767.0,87766.0,0.00301098]
[1742927260124,0.20124505,87767.0,87766.0,0.11693658]
[1742927260324,0.24154505,87767.0,87766.0,0.11693658]
[1742927262615,0.24155335,87767.0,87766.0,0.11693658]
[1742927262817,0.28245337,87767.0,87766.0,0.15753658]
[1742927263428,0.28245337,87767.0,87766.0,1.65753658]
[1742927264719,0.28245909,87767.0,87766.0,1.69813658]
[1742927264919,0.04653479,87767.0,87766.0,1.69813658]
[1742927265115,0.04653479,87767.0,87766.0,1.73803658]
[1742927265329,0.2025582,87785.0,87783.0,0.1139036]
[1742927265632,0.2025582,87785.0,87783.0,0.8373436]
[1742927265821,0.2025582,87785.0,87783.0,0.9548436]
[1742927266125,0.1143023,87784.0,87783.0,2.4149436]
[1742927266332,0.1949023,87784.0,87783.0,2.4149436]
[1742927267130,0.081,87784.0,87783.0,2.4149436]
[1742927267331,0.1949023,87784.0,87783.0,0.9149436]
[1742927268433,0.081,87784.0,87783.0,0.9149436]
[1742927270137,0.1539928,87792.0,87789.0,0.1138958]
[1742927270323,0.0382,87791.0,87789.0,0.1157358]
[1742927270722,0.0382,87791.0,87789.0,0.1562358]
[1742927271231,0.11406538,87790.0,87789.0,0.1562358]
[1742927271432,0.15216538,87790.0,87789.0,0.1955358]
[1742927271832,0.19036538,87790.0,87789.0,0.1955358]
[1742927273643,0.19036538,87790.0,87789.0,0.1157358]
[1742927273931,0.19036538,87790.0,87789.0,0.00184]
[1742927274134,0.19036538,87790.0,87789.0,0.1157358]
[1742927274324,0.19036538,87790.0,87789.0,0.00184]
[1742927274523,0.19036538,87790.0,87789.0,0.1157358]
[1742927274822,0.19036538,87790.0,87789.0,0.12703743]
[1742927275441,0.20311345,87790.0,87789.0,0.12703743]
[1742927276227,0.20311345,87790.0,87789.0,0.00184]
[1742927276422,0.20311345,87790.0,87789.0,0.1157358]
[1742927276831,0.20311345,87790.0,87789.0,0.00184]
[1742927277422,0.21223551,87790.0,87789.0,0.00184]
[1742927277621,0.22015493,87790.0,87789.0,0.00184]
[1742927277823,0.22015493,87790.0,87789.0,0.1157358]
[1742927279739,0.22015493,87790.0,87789.0,0.00184]
[1742927279930,0.22015493,87790.0,87789.0,0.1157358]
[1742927280236,0.22015493,87790.0,87789.0,0.00184]
[1742927281222,0.58095493,87790.0,87776.0,0.056956]
[1742927281424,0.3608,87777.0,87756.0,0.29095604]
[1742927281628,0.1139516,87746.0,87739.0,0.53624169]
[1742927281836,0.25592206,87746.0,87745.0,0.46981148]
[1742927282036,0.26384148,87746.0,87745.0,0.58376438]
[1742927282224,0.26444149,87746.0,87745.0,0.58376438]
[1742927282425,0.26384148,87746.0,87745.0,2.21981148]
[1742927282631,0.26384148,87746.0,87745.0,1.96981148]
[1742927283437,0.26384148,87746.0,87745.0,2.08376438]
[1742927284033,0.26384148,87746.0,87745.0,2.08576438]
[1742927284834,0.26384148,87746.0,87745.0,2.08476438]
[1742927285146,0.37779308,87746.0,87745.0,1.5026]
[1742927285338,0.37839309,87746.0,87745.0,1.5026]
[1742927287445,0.38039309,87746.0,87745.0,1.5016]
[1742927287949,0.38239309,87746.0,87745.0,1.5006]
[1742927289642,0.26844149,87746.0,87745.0,1.6145529]
[1742927289849,0.26784148,87746.0,87745.0,1.6548529]
[1742927290238,0.26844149,87746.0,87745.0,1.6548529]
[1742927290943,0.26584148,87746.0,87745.0,1.7685329]
[1742927291244,0.3608,87757.0,87753.0,0.1139425]
[1742927291549,0.00077089,87754.0,87753.0,0.1145425]
[1742927292055,0.00077089,87754.0,87753.0,1.6145425]
[1742927292247,0.00077089,87754.0,87753.0,1.6895425]